bitfinex-derivatives/quotes_ETHF0:USTF0_20251024
["timestamp","ask_amount","ask_price","bid_price","bid_amount"]
[1761342421101,8.954,3942.8,3942.5,0.4788]
[1761342421403,1.36364555,3942.7,3942.5,0.4788]
[1761342421899,1.36364555,3942.7,3942.6,0.3388]
[1761342422396,1.36364555,3942.7,3942.5,0.14]
[1761342422602,1.36364555,3942.7,3942.5,0.1352]
[1761342422801,1.36364555,3942.7,3942.5,0.474]
[1761342423002,5.0,3942.7,3942.0,0.4788]
[1761342423203,1.36377785,3942.2,3941.7,0.3388]
[1761342423405,0.90918589,3942.0,3941.7,0.3388]
[1761342424192,0.90918589,3941.9,3941.5,0.4788]
[1761342424897,0.90918589,3941.9,3941.5,0.14]
[1761342425103,1.36377785,3941.6,3941.2,0.3388]
[1761342425303,0.90870962,3941.4,3941.2,0.3388]
[1761342425597,1.36377785,3941.4,3941.2,0.3388]
[1761342428202,10.33277785,3941.5,3941.2,0.3388]
[1761342429391,0.90775999,3941.3,3941.2,0.3388]
[1761342432102,10.33277785,3941.5,3941.2,0.3388]
[1761342432304,0.90778929,3941.3,3941.2,0.3388]
[1761342432794,10.33277785,3941.5,3941.2,0.3388]
[1761342433403,1.36377785,3941.4,3941.2,0.3388]
[1761342433799,1.36377785,3941.4,3941.1,0.00316443]
[1761342434007,8.969,3941.5,3940.6,0.3234]
[1761342434008,1.36377785,3941.3,3940.6,0.3234]
[1761342434208,0.90832483,3941.0,3940.6,0.3234]
[1761342434506,9.87732483,3940.9,3940.5,0.1352]
[1761342434703,9.87732483,3940.9,3940.2,0.3234]
[1761342434704,8.97,3940.8,3940.2,0.3234]
[1761342434901,0.90832483,3940.5,3940.2,0.3234]
[1761342435205,8.97,3940.4,3940.2,0.32530733]
[1761342436307,9.17645844,3940.4,3940.2,0.32530733]
[1761342437308,9.17645844,3940.4,3940.3,0.3234]
[1761342437309,8.97,3940.4,3940.3,0.3234]
[1761342437510,8.97,3940.4,3940.3,0.7807]
[1761342445416,8.97,3940.4,3940.3,0.5576]
[1761342448413,8.97,3940.4,3940.3,0.7807]
[1761342453511,8.97,3940.4,3940.3,0.3234]
[1761342453719,9.87832483,3940.4,3940.2,0.00190733]
[1761342454019,1.36377785,3940.3,3940.2,0.00190733]
[1761342454218,8.97,3940.4,3940.2,0.00190733]
[1761342457620,10.7957456,3940.4,3940.2,0.00190733]
[1761342460120,8.97,3940.4,3940.2,0.00190733]
[1761342460521,8.97,3940.4,3939.5,0.4597]
[1761342460723,0.91027861,3939.8,3939.7,0.2143]
[1761342461019,0.91027861,3939.8,3939.7,0.752]
[1761342461020,8.97,3939.8,3939.7,0.752]
[1761342461321,8.97,3939.8,3939.7,0.3245]
[1761342461617,8.97,3939.8,3939.7,0.32639415]
[1761342461816,9.88027861,3939.8,3939.7,0.32639415]
[1761342462316,9.88027861,3939.8,3939.7,0.00189415]
[1761342462623,8.97,3939.8,3939.7,0.00189415]
[1761342463020,8.97,3939.8,3939.7,0.32639415]
[1761342463524,1.36512439,3939.8,3939.7,0.75389415]
[1761342463728,0.91013218,3939.8,3939.7,0.75389415]
[1761342464016,0.00181724,3940.5,3940.4,0.752]
[1761342464222,8.97981724,3940.5,3940.4,0.752]
[1761342469536,0.00181724,3940.5,3940.4,0.752]
[1761342469919,0.00181724,3940.5,3940.4,5.752]
[1761342470123,3.231,3940.7,3940.6,0.752]
[1761342471125,3.23382875,3940.7,3940.6,0.752]
[1761342471318,2.74545239,3940.7,3940.6,5.752]
[1761342471518,1.36512439,3941.7,3941.6,0.5388]
[1761342471719,10.34012439,3941.7,3941.6,0.5388]
[1761342472526,10.34295261,3941.7,3941.6,0.5388]
[1761342473025,8.97782822,3941.7,3941.6,0.5388]
[1761342477037,8.97782822,3941.7,3941.6,0.3245]
[1761342478232,8.97782822,3941.7,3941.6,0.7721]
[1761342481931,1.36512439,3942.7,3942.5,0.1401]
[1761342482233,1.8257456,3943.1,3942.5,0.1401]
[1761342482234,1.36512439,3943.1,3943.0,0.4809]
[1761342482529,8.972,3943.1,3942.5,0.1401]
[1761342482734,1.36234383,3943.0,3942.5,0.1401]
[1761342482932,1.36234383,3942.9,3942.5,0.00291817]
[1761342483324,1.36234383,3942.9,3941.5,0.1268]
[1761342483325,5.0,3942.8,3941.5,0.1268]
[1761342483534,1.36161241,3942.3,3941.5,0.1268]
[1761342483832,1.36161241,3941.6,3940.5,0.1401]
[1761342484033,1.36121022,3941.4,3940.5,0.1401]
[1761342484234,10.33921022,3941.3,3940.5,0.14266968]
[1761342485227,10.33921022,3941.3,3940.6,0.3408]
[1761342486227,8.978,3941.3,3940.6,0.3408]
[1761342486531,10.33921022,3941.3,3940.6,0.3408]
[1761342488933,1.36121022,3941.2,3940.6,0.3408]
[1761342491229,1.36121022,3941.1,3940.6,0.3408]
[1761342491533,1.36121022,3941.2,3941.1,0.3306]
[1761342491835,10.33921022,3941.3,3941.1,0.3306]
[1761342492831,1.36121022,3941.2,3941.1,0.3306]
[1761342493137,8.978,3941.3,3941.1,0.3306]
[1761342493333,8.978,3941.3,3941.0,0.1386]
[1761342493526,8.978,3941.3,3941.0,0.4692]
[1761342493527,1.36571538,3941.1,3941.0,0.4692]
[1761342496442,8.978,3941.3,3941.0,0.4692]
[1761342497738,8.978,3941.3,3941.1,0.3306]
[1761342498546,1.3658295,3941.2,3941.1,0.3306]
[1761342499242,8.972,3941.2,3941.1,0.5427]
[1761342499742,1.3658295,3941.3,3941.2,0.7675]
[1761342499944,4.5416079,3943.3,3941.4,0.2121]
[1761342499945,1.3658295,3941.5,3941.4,0.2121]
[1761342500145,10.3368295,3941.5,3941.4,0.5427]
[1761342500349,10.3368295,3941.5,3941.4,0.7675]
[1761342501439,1.3658295,3941.6,3941.5,0.6813]
[1761342501647,2.27080395,3942.4,3941.6,0.7675]
[1761342501648,0.91060347,3941.8,3941.6,0.7675]
[1761342501843,0.91060347,3942.0,3941.8,0.4369]
[1761342502146,0.91060347,3942.1,3942.0,0.9061]
[1761342502343,9.88460347,3942.1,3942.0,0.9061]
[1761342503551,8.974,3942.1,3942.0,0.9061]
[1761342503745,9.88460347,3942.1,3942.0,0.9061]
[1761342504248,8.974,3942.1,3942.0,0.9061]
[1761342505348,0.002,3942.7,3942.1,0.7675]
[1761342505349,0.91060347,3942.3,3942.1,0.7675]
[1761342505647,0.002,3942.7,3942.5,0.9061]
[1761342505648,0.91060347,3942.6,3942.5,0.9061]
[1761342505848,0.002,3942.7,3942.6,0.5427]
[1761342506055,7.29960347,3942.7,3942.6,0.3306]
[1761342506348,6.389,3942.7,3942.6,0.3306]
[1761342507136,6.389,3942.7,3942.6,0.5427]
[1761342507650,7.2979601,3942.7,3942.6,0.5427]
[1761342509347,6.389,3942.7,3942.6,0.5427]
[1761342515258,6.389,3942.7,3942.6,0.7675]
[1761342518259,6.389,3942.7,3942.6,0.5427]
[1761342519253,6.389,3942.7,3942.6,0.3306]
[1761342519457,0.002,3942.7,3942.6,0.7629]
[1761342519647,1.3658295,3944.2,3944.0,0.1313]
[1761342519853,0.223,3944.2,3944.1,0.7539]
[1761342520156,0.4404,3944.2,3944.1,0.7539]
[1761342520547,0.44322896,3944.2,3944.1,0.75705093]
[1761342520950,0.79112896,3944.2,3944.1,0.75705093]
[1761342521860,0.44322896,3944.2,3944.1,0.75705093]
[1761342522257,0.79112896,3944.2,3944.1,0.53955093]
[1761342522460,0.79112896,3944.2,3944.1,0.00315093]
[1761342526362,0.79112896,3944.2,3944.1,0.53955093]
[1761342529256,0.79112896,3944.2,3944.1,0.00315093]
[1761342529864,0.3479,3943.3,3943.1,0.3216]
[1761342530064,9.7603,3943.2,3943.1,0.5364]
[1761342530263,9.1743,3943.2,3943.1,0.5364]
[1761342530762,9.1743,3943.2,3943.1,0.53946354]
[1761342531558,9.1743,3943.2,3943.1,0.00306354]
[1761342534455,9.1743,3943.2,3943.1,0.32466354]
[1761342534653,0.4404,3943.2,3943.1,0.75696354]
[1761342534957,0.1226,3944.5,3943.6,0.7539]
[1761342534958,0.223,3943.7,3943.6,0.7539]
[1761342535156,2.17647456,3944.2,3943.8,0.7539]
[1761342535157,0.223,3943.9,3943.8,0.7539]
[1761342535358,6.551,3943.9,3943.8,0.7539]
[1761342538266,6.328,3943.9,3943.8,0.7539]
[1761342538665,6.5583,3943.9,3943.8,0.7539]
[1761342539661,6.328,3943.9,3943.8,0.7539]
[1761342540272,6.5583,3943.9,3943.8,0.7539]
[1761342544163,0.2303,3943.9,3943.8,0.7539]
[1761342544368,9.1983,3943.9,3943.8,0.7539]
[1761342546266,8.968,3943.9,3943.8,0.3181]
[1761342546463,9.1983,3943.9,3943.8,0.7473]
[1761342546869,9.411,3943.9,3943.8,0.7473]
[1761342547773,9.7523,3943.9,3943.8,0.7473]
[1761342549374,8.968,3943.9,3943.8,0.7473]
[1761342549568,9.2,3943.9,3943.8,0.7473]
[1761342549764,9.4298,3943.9,3943.8,0.7473]
[1761342549970,9.7711,3943.9,3943.8,0.7473]
[1761342550667,10.68208547,3943.9,3943.8,0.3181]
[1761342551171,0.3413,3943.8,3943.5,0.3355]
[1761342551378,10.34078547,3943.9,3943.6,0.3355]
[1761342551573,10.34078547,3943.9,3943.8,0.7788]
[1761342553977,9.4298,3943.9,3943.8,0.7788]
[1761342554976,9.2,3943.9,3943.8,0.7788]
[1761342555378,9.4298,3943.9,3943.8,0.7788]
[1761342555568,9.7711,3943.9,3943.8,0.7788]
[1761342555769,0.8031,3943.6,3943.5,0.3355]
[1761342555969,1.71410689,3943.6,3943.5,0.3355]
[1761342556179,0.91100689,3943.8,3943.5,0.5708]
[1761342556477,1.14300689,3943.8,3943.7,0.7788]
[1761342556780,0.91100689,3943.8,3943.7,0.7788]
[1761342556980,1.37280689,3943.8,3943.7,0.7788]
[1761342559083,1.14300689,3943.8,3943.7,0.7788]
[1761342559880,0.91100689,3943.8,3943.7,0.7788]
[1761342560088,0.00282896,3944.2,3944.1,0.7788]
[1761342560377,0.00282896,3944.2,3944.1,1.42745591]
[1761342560786,0.00282896,3944.2,3944.1,2.10791702]
[1761342561083,0.23482896,3944.2,3944.1,1.42745591]
[1761342561885,0.23482896,3944.2,3944.1,0.7788]
[1761342563684,0.46462896,3944.2,3944.1,0.7788]
[1761342563880,0.46462896,3944.2,3944.1,1.42657973]
[1761342565192,0.00282896,3944.2,3944.1,1.42657973]
[1761342569499,0.23482896,3944.2,3944.1,1.42657973]
[1761342570798,0.23682896,3944.2,3944.1,1.42657973]
[1761342573199,0.80792896,3944.2,3944.1,0.5557]
[1761342573401,0.80792896,3944.2,3944.1,0.3355]
[1761342573903,0.3413,3944.1,3943.6,0.2202]
[1761342574108,0.232,3943.7,3943.6,0.4433]
[1761342574305,0.232,3943.7,3943.6,1.09094105]
[1761342574506,0.232,3943.7,3943.6,1.42644105]
[1761342574804,0.4618,3943.7,3943.6,1.42644105]
[1761342578302,0.8096,3943.7,3943.6,1.42644105]
[1761342578809,0.232,3943.7,3943.6,0.7985]
[1761342579107,0.2214,3943.7,3943.6,0.463]
[1761342579303,0.7812,3943.7,3943.6,0.463]
[1761342579809,0.7812,3943.7,3943.6,0.8027]
[1761342580307,0.7812,3943.7,3943.6,0.573]
[1761342581110,0.00482896,3944.2,3943.7,0.3397]
[1761342581111,0.5692,3944.0,3943.7,0.3397]
[1761342581414,0.2214,3944.0,3943.9,0.8027]
[1761342581902,0.00482896,3944.2,3944.1,0.8027]
[1761342584112,0.00482896,3944.2,3944.1,1.90827048]
[1761342584710,0.00482896,3944.2,3944.1,2.58823972]
[1761342585210,0.00482896,3944.2,3944.1,7.58823972]
[1761342585512,0.00482896,3944.2,3944.1,6.90827048]
[1761342586216,8.976,3945.0,3944.9,0.8027]
[1761342586413,0.4334,3945.7,3945.6,0.2333]
[1761342586617,0.4334,3945.7,3945.6,0.8027]
[1761342587102,0.7812,3945.7,3945.6,0.8027]
[1761342587309,0.78409442,3945.7,3945.6,0.2333]
[1761342587811,0.4334,3945.4,3945.0,0.573]
[1761342588015,0.7812,3944.9,3944.8,0.573]
[1761342588210,0.7812,3944.9,3944.8,1.22181859]
[1761342588417,0.7812,3944.9,3944.8,1.45151859]
[1761342589113,0.7812,3945.4,3945.3,0.2333]
[1761342589409,0.00289442,3945.7,3945.2,0.463]
[1761342589410,0.5692,3945.3,3945.2,0.463]
[1761342589600,0.00289442,3945.7,3945.5,0.9351]
[1761342589801,0.22429442,3945.7,3945.6,0.8027]
[1761342590413,0.3478,3945.6,3945.2,0.3397]
[1761342590611,0.7812,3945.3,3945.2,0.2333]
[1761342591107,0.7812,3945.0,3944.9,0.8027]
[1761342591715,0.3478,3945.5,3945.4,0.573]
[1761342591913,0.3478,3945.5,3945.4,0.8027]
[1761342592216,0.4334,3945.1,3945.0,0.573]
[1761342592406,0.7812,3945.1,3945.0,0.573]
[1761342592715,0.7812,3945.1,3945.0,0.8027]
[1761342593408,0.7812,3945.1,3945.0,0.2333]
[1761342593809,0.7812,3945.1,3945.0,0.573]
[1761342595117,0.7812,3945.1,3945.0,0.8027]
[1761342597516,0.5534,3945.4,3945.3,0.4429]
[1761342597721,0.3302,3945.6,3945.4,0.3315]
[1761342597918,0.5534,3945.6,3945.5,0.9132]
[1761342598923,0.7811,3945.6,3945.5,0.9132]
[1761342599117,0.7811,3945.6,3945.5,0.7744]
[1761342600321,0.7811,3945.2,3945.1,0.3315]
[1761342600620,0.7811,3945.2,3945.1,0.7744]
[1761342601821,9.4319,3945.2,3944.8,0.3315]
[1761342602125,0.7811,3944.9,3944.8,0.7744]
[1761342603319,8.981,3945.2,3945.1,0.7744]
[1761342606529,9.7621,3945.2,3945.1,0.4429]
[1761342606921,9.7621,3945.2,3945.1,0.7744]
[1761342607631,0.35489442,3945.7,3945.6,0.7738]
[1761342607832,9.79239442,3945.7,3945.6,0.7738]
[1761342609431,0.8065,3945.2,3945.1,0.7738]
[1761342611533,0.8065,3945.2,3944.7,0.3375]
[1761342611728,0.8065,3944.9,3944.8,1.42568679]
[1761342612129,8.667,3945.1,3945.0,0.5693]
[1761342612437,8.667,3945.1,3945.0,1.55868679]
[1761342612632,8.9011,3945.1,3945.0,1.55868679]
[1761342613232,9.2531,3945.1,3945.0,1.55868679]
[1761342616240,9.4735,3945.1,3945.0,1.55868679]
[1761342616940,9.4735,3945.1,3945.0,2.23843415]
[1761342617437,9.4735,3945.1,3945.0,2.10543415]
[1761342618141,9.4735,3945.1,3945.0,1.42568679]
[1761342621240,9.4735,3945.1,3945.0,2.10543415]
[1761342623350,0.8065,3945.1,3945.0,1.42568679]
[1761342623643,0.352,3945.3,3945.1,0.3375]
[1761342623846,4.353,3945.2,3945.1,1.4561701]
[1761342624145,4.353,3945.2,3945.1,2.10906804]
[1761342624535,4.353,3945.2,3945.1,1.42669794]
[1761342628340,4.353,3945.2,3945.1,2.10858991]
[1761342630242,0.00289442,3945.7,3945.6,0.89244]
[1761342630546,0.00289442,3945.7,3945.6,1.88283794]
[1761342631150,1.3658295,3946.5,3946.1,0.45607]
[1761342631446,0.1364,3946.5,3946.2,1.55363263]
[1761342631644,0.8065,3946.3,3946.2,0.2194]
[1761342631846,0.8065,3946.3,3946.2,1.20845537]
[1761342632051,0.8065,3946.3,3946.2,2.10669006]
[1761342632248,0.82905666,3946.3,3946.2,1.42795339]
[1761342632644,0.84863235,3946.3,3946.2,1.42795339]
[1761342633546,0.04213235,3946.3,3946.2,1.42795339]
[1761342634751,0.04213235,3946.3,3946.2,6.42795339]
[1761342635448,0.04213235,3946.3,3946.2,7.1069861]
[1761342636251,0.04213235,3946.3,3946.2,6.42795339]
[1761342636646,0.2341,3947.0,3946.9,0.7738]
[1761342637651,0.2360606,3947.0,3946.9,0.7738]
[1761342638453,0.0019606,3947.0,3946.9,0.7738]
[1761342638648,0.0019606,3947.0,3946.9,6.42331566]
[1761342639050,0.0019606,3947.0,3946.9,1.42331566]
[1761342639550,0.351,3947.7,3947.1,0.3175]
[1761342639751,0.5765,3947.7,3947.3,0.3175]
[1761342639955,0.8003,3947.7,3947.6,0.7779]
[1761342640250,0.2255,3947.2,3947.1,0.3175]
[1761342640458,0.5765,3947.2,3947.1,1.42663224]
[1761342640647,0.2255,3947.2,3947.1,0.7779]
[1761342640842,0.2255,3947.2,3947.0,0.1337]
[1761342640843,0.351,3947.6,3947.2,0.3175]
[1761342641047,0.8003,3947.6,3947.5,0.9116]
[1761342641850,0.8003,3947.6,3947.5,0.7779]
[1761342642148,0.4493,3947.1,3946.2,1.13769073]
[1761342642353,0.1403,3947.5,3946.6,0.7779]
[1761342642354,0.8003,3946.7,3946.6,0.7779]
[1761342642649,0.8003,3946.7,3946.6,0.2346]
[1761342642851,0.8003,3946.3,3946.2,0.00259802]
[1761342644452,0.8003,3946.3,3945.2,0.5521]
[1761342644453,0.8003,3945.3,3945.2,0.5521]
[1761342644643,0.8003,3945.3,3944.7,1.36256981]
[1761342644644,0.2255,3945.2,3945.1,0.7779]
[1761342645243,0.5765,3945.2,3945.1,0.7779]
[1761342645450,0.5765,3945.2,3945.1,0.78008331]
[1761342645662,0.8003,3945.2,3945.1,0.78008331]
[1761342647164,0.8003,3945.4,3945.3,0.4604]
[1761342647460,0.8003,3945.4,3945.3,0.2346]
[1761342647847,0.351,3945.3,3945.1,0.23678331]
[1761342648042,0.8003,3945.2,3945.1,0.23678331]
[1761342648254,0.8003,3945.2,3945.1,0.55428331]
[1761342649158,0.8003,3945.2,3945.1,0.78008331]
[1761342650454,0.1403,3945.5,3945.1,0.78008331]
[1761342650654,0.2255,3945.5,3945.2,0.3175]
[1761342650856,0.2255,3945.5,3945.4,0.7779]
[1761342651057,0.5765,3945.5,3945.4,0.7779]
[1761342651762,0.8003,3945.5,3945.4,0.7779]
[1761342657058,0.5765,3945.9,3945.8,0.2346]
[1761342657256,0.8003,3945.9,3945.8,0.5521]
[1761342657457,0.7823,3945.4,3945.3,0.5616]
[1761342657955,0.7823,3945.4,3945.3,0.7895]
[1761342658156,0.3291,3945.4,3945.3,0.7895]
[1761342658352,0.5521,3945.4,3945.3,0.7895]
[1761342658554,0.7823,3945.4,3945.3,0.2341]
[1761342658954,0.7823,3945.4,3945.3,0.5616]
[1761342659357,0.7823,3945.4,3945.3,0.7895]
[1761342670264,0.7823,3945.4,3945.3,1.44066538]
[1761342673366,0.7823,3945.4,3945.3,2.11969809]
[1761342674369,0.7823,3945.4,3945.3,1.44066538]
[1761342676475,0.7823,3945.4,3945.3,2.34699519]
[1761342680973,0.7823,3945.4,3945.3,1.44066538]
[1761342681769,0.7823,3945.4,3945.3,0.88526538]
[1761342682071,0.7823,3945.4,3945.3,1.23406538]
[1761342682273,1.5061295,3946.0,3945.3,1.23406538]
[1761342682274,0.7797,3946.0,3945.9,0.5714]
[1761342682464,0.9146,3946.0,3945.9,1.22256538]
[1761342682668,0.9146,3946.0,3945.9,1.43946538]
[1761342685473,0.7797,3946.0,3945.9,1.43946538]
[1761342687368,0.2277,3946.0,3945.9,1.89557538]
[1761342687776,0.5657,3946.0,3945.9,1.89557538]
[1761342687973,0.5657,3946.0,3945.9,2.57648453]
[1761342689372,0.5657,3946.0,3945.9,1.89557538]
[1761342689771,0.9146,3946.0,3945.9,0.87376538]
[1761342689973,0.9146,3946.0,3945.9,0.65116538]
[1761342690573,0.5766,3945.5,3945.3,0.90350915]
[1761342690882,9.2057,3945.5,3945.4,2.12173052]
[1761342692676,9.2057,3945.5,3945.4,1.33343052]
[1761342692881,9.3406,3945.5,3945.4,0.65252137]
[1761342693080,9.3406,3945.5,3945.4,1.33343052]
[1761342693378,9.3406,3945.5,3945.4,1.55603052]
[1761342693582,9.3406,3945.5,3945.4,1.90483052]
[1761342693881,9.3406,3945.5,3945.4,1.44082137]
[1761342694079,9.2057,3945.5,3945.4,1.44082137]
[1761342694281,9.2057,3945.5,3945.4,1.44084821]
[1761342694677,9.2057,3945.5,3945.4,0.65254821]
[1761342694678,9.3406,3945.5,3945.4,0.65254821]
[1761342695080,9.3406,3945.5,3945.4,1.22394821]
[1761342695986,9.2057,3945.5,3945.4,1.44084821]
[1761342696985,9.2057,3945.5,3945.4,2.12174014]
[1761342701384,9.3445,3945.5,3945.4,1.33344014]
[1761342701589,0.072,3945.4,3944.3,0.90851062]
[1761342701783,0.072,3945.4,3943.5,0.1328]
[1761342701784,1.3658295,3944.6,3944.5,0.37431979]
[1761342701987,3.98,3944.6,3944.5,0.37431979]
[1761342702189,3.99951352,3944.6,3944.5,0.37431979]
[1761342702491,10.43923195,3944.6,3944.5,0.37651222]
[1761342702690,9.07612644,3944.6,3944.5,0.59221222]
[1761342703487,0.9318536,3944.6,3944.5,0.59221222]
[1761342703688,3.20812644,3944.6,3944.5,0.59221222]
[1761342704092,0.02212644,3944.6,3944.5,0.59221222]
[1761342704290,9.9858536,3944.6,3944.5,0.59221222]
[1761342704492,9.07612644,3944.6,3944.5,0.37651222]
[1761342704893,9.9858536,3944.6,3944.5,0.37651222]
[1761342705194,14.07612644,3944.6,3944.0,0.1328]
[1761342705394,0.90925875,3944.4,3944.0,0.1328]
[1761342706188,0.01951352,3944.2,3944.0,0.13554007]
[1761342707188,0.90925875,3944.5,3944.1,0.3317]
[1761342707390,9.96587167,3944.6,3944.1,0.31218648]
[1761342707788,9.96587167,3944.6,3944.5,0.1328]
[1761342708294,14.96587167,3944.6,3944.1,0.31218648]
[1761342709098,0.90925875,3944.5,3944.0,0.13554007]
[1761342709298,0.90925875,3944.5,3944.0,0.46724007]
[1761342709490,0.90925875,3944.5,3944.1,0.3317]
[1761342710500,5.90925875,3944.4,3944.1,0.3317]
[1761342710698,0.90925875,3944.3,3944.1,0.3317]
[1761342711695,2.537,3944.1,3942.0,0.1328]
[1761342711896,5.0,3944.2,3942.0,0.1328]
[1761342711897,0.90664819,3942.9,3942.8,0.2157]
[1761342712090,0.90664819,3943.0,3942.8,0.4416]
[1761342712291,6.302,3942.9,3942.8,0.4416]
[1761342712689,0.90664819,3943.5,3943.0,0.1328]
[1761342712891,9.081,3943.4,3943.1,0.3317]
[1761342713094,9.98764819,3943.4,3943.1,0.3317]
[1761342713599,9.081,3943.4,3943.1,0.3317]
[1761342715186,14.081,3943.4,3943.1,0.3317]
[1761342715400,5.0,3943.3,3943.0,0.1328]
[1761342716092,5.0,3943.2,3943.0,0.1328]
[1761342716286,5.90664819,3943.2,3943.0,0.1328]
[1761342716492,0.90664819,3943.2,3942.8,0.33474034]
[1761342716693,0.90664819,3943.2,3942.8,0.00304034]
[1761342717298,0.90664819,3943.1,3942.8,0.00304034]
[1761342717895,0.90664819,3943.1,3942.5,0.4645]
[1761342717896,5.0,3943.0,3942.5,0.4645]
[1761342718097,0.90664819,3943.1,3942.5,0.4645]
[1761342718098,9.98764819,3942.9,3942.5,0.4645]
[1761342718706,9.98764819,3942.9,3942.5,0.1328]
[1761342718904,9.98764819,3942.9,3942.5,0.13462019]
[1761342720207,14.98764819,3942.9,3942.2,0.3444]
[1761342720408,0.90664819,3942.8,3942.0,0.1328]
[1761342720604,0.90664819,3942.8,3942.5,0.1389]
[1761342720799,7.704,3942.7,3942.6,0.3444]
[1761342720999,7.90529696,3942.7,3942.6,0.3444]
[1761342721199,9.27729696,3942.7,3942.6,0.34699998]
[1761342721899,0.20129696,3942.7,3942.6,0.34699998]
[1761342722100,9.077,3942.7,3942.6,0.34699998]
[1761342722303,14.077,3942.7,3942.5,0.1389]
[1761342722504,14.077,3942.7,3942.3,0.3444]
[1761342722701,14.077,3942.7,3942.0,0.4772]
[1761342722702,9.077,3942.7,3942.0,0.4772]
[1761342722904,10.18441856,3942.7,3942.0,0.4772]
[1761342723507,10.18441856,3942.7,3942.0,0.47982273]
[1761342724911,0.90664819,3942.6,3942.0,0.00262273]
[1761342726714,0.90664819,3942.6,3942.0,0.14152273]
[1761342726906,0.90664819,3942.5,3942.0,0.14152273]
[1761342727816,0.90664819,3942.4,3942.0,0.14152273]
[1761342728110,9.98264819,3942.3,3942.0,0.14152273]
[1761342728316,0.90664819,3942.2,3941.8,0.3444]
[1761342728528,0.90664819,3942.0,3941.8,0.3444]
[1761342728825,9.075,3941.9,3941.8,0.3444]
[1761342729223,9.075,3941.9,3941.8,0.34699504]
[1761342729428,9.98164819,3941.9,3941.8,0.34699504]
[1761342729616,9.075,3941.9,3941.8,0.34699504]
[1761342730325,9.98164819,3941.9,3941.8,0.34699504]
[1761342731222,0.90664819,3941.9,3941.8,0.56019504]
[1761342731422,1.35997229,3942.1,3942.0,0.8892]
[1761342731622,1.35997229,3942.3,3942.0,0.8892]
[1761342731823,0.90590075,3942.4,3942.3,0.3277]
[1761342732129,1.81329638,3943.1,3942.0,0.1349]
[1761342732130,0.90590075,3942.6,3942.5,0.8892]
[1761342732430,9.073,3942.6,3942.5,0.8892]
[1761342732721,0.90590075,3942.7,3942.5,0.5615]
[1761342732928,7.16990075,3942.6,3942.5,0.5615]
[1761342733521,9.97790075,3942.6,3942.5,0.8892]
[1761342733918,9.97690075,3942.6,3942.5,0.8892]
[1761342734128,9.071,3942.6,3942.5,0.8892]
[1761342734324,0.90590075,3942.7,3942.5,0.8892]
[1761342734531,0.90590075,3942.7,3942.6,0.7543]
[1761342734729,9.97590075,3942.7,3942.6,0.7543]
[1761342735028,1.35997229,3942.9,3942.5,0.1349]
[1761342735029,0.90590075,3942.9,3942.8,0.7543]
[1761342735221,0.90590075,3943.0,3942.9,0.5409]
[1761342735425,9.97590075,3943.0,3942.9,0.7543]
[1761342735823,9.07,3943.0,3942.9,0.7543]
[1761342736224,9.07,3943.0,3942.9,0.5409]
[1761342737429,10.42997229,3943.0,3942.9,0.3277]
[1761342737827,10.42997229,3943.0,3942.9,0.5409]
[1761342738330,9.07,3943.0,3942.9,0.5409]
[1761342742337,9.07,3943.0,3942.9,0.3277]
[1761342744636,9.07,3943.0,3942.9,0.21102905]
[1761342745339,10.88329638,3943.0,3942.5,0.1349]
[1761342745539,1.81329638,3942.8,3942.5,0.1349]
[1761342745835,9.057,3942.7,3942.5,0.1349]
[1761342746637,9.057,3942.7,3942.6,0.3277]
[1761342750330,9.057,3942.7,3942.5,0.1349]
[1761342751840,9.057,3942.7,3942.0,0.4626]
[1761342752034,1.82021374,3942.3,3941.8,0.33029504]
[1761342752338,1.36523546,3941.9,3941.8,0.33029504]
[1761342752534,10.41723546,3941.9,3941.8,0.33029504]
[1761342752735,9.052,3941.9,3941.8,0.33029504]
[1761342753240,9.052,3941.9,3941.8,0.54349504]
[1761342757834,10.41738872,3941.9,3941.8,0.54349504]
[1761342759244,9.052,3941.9,3941.8,0.54349504]
[1761342759539,10.41782769,3941.9,3941.8,0.54349504]
[1761342760344,9.052,3941.9,3941.8,0.54349504]
[1761342762741,9.054,3941.9,3941.8,0.54349504]
[1761342768452,9.054,3941.9,3941.8,0.77299504]
[1761342772263,1.36908633,3941.9,3941.8,0.77299504]
[1761342772554,9.031,3941.9,3941.8,0.77299504]
[1761342772955,0.002,3941.9,3941.8,5.77299504]
[1761342773656,0.9115233,3942.3,3942.2,0.793]
[1761342773958,6.8535516,3942.3,3942.2,0.793]
[1761342774160,6.572,3942.3,3942.2,0.793]
[1761342777167,1.36708633,3942.7,3942.5,0.1323]
[1761342777461,9.027,3942.6,3942.5,0.9253]
[1761342785364,1.36708633,3943.0,3942.9,0.2225]
[1761342785569,1.36708633,3943.1,3943.0,0.9054]
[1761342785768,10.38308633,3943.1,3943.0,0.9054]
[1761342785962,9.016,3943.1,3943.0,0.9054]
[1761342786561,1.82021374,3943.5,3943.1,0.3236]
[1761342786762,9.016,3943.4,3943.2,0.3236]
[1761342786967,9.016,3943.4,3943.3,0.3236]
[1761342787366,1.82021374,3943.6,3943.5,0.14]
[1761342787666,1.82021374,3943.6,3943.5,0.7006]
[1761342787870,9.014,3943.6,3943.5,0.7006]
[1761342788168,9.014,3943.6,3943.5,0.4749]
[1761342789365,1.82021374,3943.8,3943.6,0.3349]
[1761342789565,9.013,3943.7,3943.6,0.3349]
[1761342795475,1.82021374,3943.8,3943.6,0.5606]
[1761342795671,1.82021374,3943.8,3943.7,0.3349]
[1761342795872,10.58621374,3943.8,3943.7,0.3349]
[1761342798978,1.82021374,3943.8,3943.7,0.3349]
[1761342799177,10.82221374,3943.8,3943.7,0.3349]
[1761342800285,9.002,3943.8,3943.7,0.3349]
[1761342802382,2.27080395,3944.1,3944.0,0.9242]